[Event "*** Titled Tuesday Blitz"]
[Site "Chess.com"]
[Date "2020.05.12"]
[Round "7"]
[White "Arjun2002"]
[Black "harvsp123"]
[Result "1-0"]
[WhiteElo "2673"]
[BlackElo "2536"]
[TimeControl "180+1"]
[EndTime "11:15:19 PDT"]
[Termination "Arjun2002 won by resignation"]

1. e4 {[%clk 0:03:00.9]} 1... c5 {[%clk 0:02:58.8]} 2. Nf3 {[%clk 0:03:00.9]}
2... d6 {[%clk 0:02:58.8]} 3. Bb5+ {[%clk 0:03:00.6]} 3... Nd7 {[%clk
0:02:58.5]} 4. c3 {[%clk 0:02:56.9]} 4... Nf6 {[%clk 0:02:55.7]} 5. Bd3 {[%clk
0:02:56.8]} 5... g6 {[%clk 0:02:54.1]} 6. Bc2 {[%clk 0:02:56.6]} 6... Bg7 {[%clk
0:02:53.4]} 7. d4 {[%clk 0:02:56.1]} 7... b5 {[%clk 0:02:52.8]} 8. O-O {[%clk
0:02:52.3]} 8... O-O {[%clk 0:02:49]} 9. Re1 {[%clk 0:02:50]} 9... Bb7 {[%clk
0:02:29.2]} 10. a4 {[%clk 0:02:48.2]} 10... cxd4 {[%clk 0:02:24.3]} 11. cxd4
{[%clk 0:02:45]} 11... b4 {[%clk 0:02:24.2]} 12. b3 {[%clk 0:02:38.5]} 12... e5
{[%clk 0:02:19.5]} 13. Bb2 {[%clk 0:02:36.9]} 13... Re8 {[%clk 0:02:10.1]} 14.
Nbd2 {[%clk 0:02:36.6]} 14... exd4 {[%clk 0:01:34.6]} 15. Bxd4 {[%clk
0:02:33.1]} 15... Rc8 {[%clk 0:01:29.6]} 16. Rc1 {[%clk 0:02:32.2]} 16... Nc5
{[%clk 0:01:28.2]} 17. Bb1 {[%clk 0:02:05.1]} 17... Nfxe4 {[%clk 0:01:19.7]} 18.
Nxe4 {[%clk 0:02:02.3]} 18... Bxe4 {[%clk 0:01:08.4]} 19. Bxe4 {[%clk
0:01:49.7]} 19... Rxe4 {[%clk 0:01:04.2]} 20. Rxe4 {[%clk 0:01:45.4]} 20... Nxe4
{[%clk 0:01:03.8]} 21. Rxc8 {[%clk 0:01:43.5]} 21... Qxc8 {[%clk 0:01:04.7]} 22.
Bxg7 {[%clk 0:01:43.5]} 22... Kxg7 {[%clk 0:01:04.8]} 23. Qd4+ {[%clk
0:01:42.3]} 23... Nf6 {[%clk 0:01:05.1]} 24. Qxb4 {[%clk 0:01:29.6]} 24... Qc1+
{[%clk 0:01:01.8]} 25. Qe1 {[%clk 0:01:29]} 25... Qb2 {[%clk 0:00:59.8]} 26. Qd1
{[%clk 0:01:25.7]} 26... a5 {[%clk 0:00:38.9]} 27. h3 {[%clk 0:01:21.1]} 27...
d5 {[%clk 0:00:37.3]} 28. Qd3 {[%clk 0:01:09.9]} 28... Qc1+ {[%clk 0:00:37.3]}
29. Kh2 {[%clk 0:01:09.4]} 29... Qf4+ {[%clk 0:00:37.9]} 30. g3 {[%clk 0:01:06]}
30... Qe4 {[%clk 0:00:35.8]} 31. Qc3 {[%clk 0:01:05.4]} 31... Qe2 {[%clk
0:00:32.4]} 32. Kg2 {[%clk 0:01:03.3]} 32... Qxf2+ {[%clk 0:00:31.4]} 33. Kxf2
{[%clk 0:01:01.3]} 1-0

[Event "*** Titled Tuesday Blitz"]
[Site "Chess.com"]
[Date "2020.05.12"]
[Round "7"]
[White "Korchmar_Vasiliy"]
[Black "enriquetejedor"]
[Result "1-0"]
[WhiteElo "2643"]
[BlackElo "2471"]
[TimeControl "180+1"]
[EndTime "11:15:20 PDT"]
[Termination "Korchmar_Vasiliy won by resignation"]

1. d4 {[%clk 0:03:00.9]} 1... Nf6 {[%clk 0:02:56.8]} 2. Nf3 {[%clk 0:03:01.2]}
2... c5 {[%clk 0:02:52.1]} 3. d5 {[%clk 0:03:01]} 3... e6 {[%clk 0:02:52.1]} 4.
c4 {[%clk 0:03:00.3]} 4... exd5 {[%clk 0:02:51.7]} 5. cxd5 {[%clk 0:03:01.2]}
5... d6 {[%clk 0:02:51.1]} 6. Nc3 {[%clk 0:03:01.2]} 6... g6 {[%clk 0:02:50]} 7.
g3 {[%clk 0:03:01.8]} 7... Bg7 {[%clk 0:02:50.4]} 8. Bg2 {[%clk 0:03:02.5]} 8...
O-O {[%clk 0:02:51.3]} 9. O-O {[%clk 0:03:03.2]} 9... Na6 {[%clk 0:02:51.1]} 10.
Bf4 {[%clk 0:03:02.3]} 10... Nh5 {[%clk 0:02:50.5]} 11. Bg5 {[%clk 0:03:02.1]}
11... Nf6 {[%clk 0:02:45.1]} 12. e4 {[%clk 0:02:56.6]} 12... h6 {[%clk
0:02:43.7]} 13. Bf4 {[%clk 0:02:55.5]} 13... Nc7 {[%clk 0:02:35.5]} 14. e5
{[%clk 0:02:40.3]} 14... dxe5 {[%clk 0:02:29.8]} 15. Bxe5 {[%clk 0:02:40]} 15...
Nfxd5 {[%clk 0:02:28.3]} 16. Bxg7 {[%clk 0:02:28.6]} 16... Kxg7 {[%clk
0:02:27.8]} 17. Qb3 {[%clk 0:02:21.9]} 17... Be6 {[%clk 0:02:20.3]} 18. Rad1
{[%clk 0:02:11.9]} 18... Nxc3 {[%clk 0:02:10.1]} 19. Qxc3+ {[%clk 0:02:11.2]}
19... Qf6 {[%clk 0:02:09.5]} 20. Qxc5 {[%clk 0:02:11.7]} 20... Na6 {[%clk
0:02:09.8]} 21. Qb5 {[%clk 0:02:05.2]} 21... Bxa2 {[%clk 0:02:06.3]} 22. Ne5
{[%clk 0:01:30.3]} 22... Nc7 {[%clk 0:01:36.4]} 23. Qa5 {[%clk 0:01:28.7]} 23...
b6 {[%clk 0:00:25.6]} 24. Qxa2 {[%clk 0:01:25.9]} 24... Qxe5 {[%clk 0:00:25.6]}
25. Bxa8 {[%clk 0:01:25.2]} 25... Rxa8 {[%clk 0:00:26.5]} 26. Rfe1 {[%clk
0:01:25.3]} 26... Qh5 {[%clk 0:00:25]} 27. Rd7 {[%clk 0:01:22.4]} 27... Qf3
{[%clk 0:00:04.9]} 28. Rxc7 {[%clk 0:01:20.6]} 28... Re8 {[%clk 0:00:04.3]} 29.
Rxe8 {[%clk 0:01:17.6]} 29... Qd1+ {[%clk 0:00:04.5]} 30. Kg2 {[%clk 0:01:17.9]}
30... Qd5+ {[%clk 0:00:05.4]} 31. Qxd5 {[%clk 0:01:17.7]} 1-0

[Event "*** Titled Tuesday Blitz"]
[Site "Chess.com"]
[Date "2020.05.12"]
[Round "7"]
[White "ShieldingOff"]
[Black "rynos0411"]
[Result "0-1"]
[WhiteElo "2037"]
[BlackElo "2329"]
[TimeControl "180+1"]
[EndTime "11:15:21 PDT"]
[Termination "rynos0411 won by checkmate"]

1. d4 {[%clk 0:03:00.9]} 1... Nf6 {[%clk 0:02:58.3]} 2. c4 {[%clk 0:03:00.6]}
2... e6 {[%clk 0:02:58.1]} 3. Nf3 {[%clk 0:02:58.4]} 3... d5 {[%clk 0:02:57.8]}
4. Nc3 {[%clk 0:02:57.5]} 4... Be7 {[%clk 0:02:57.1]} 5. Bf4 {[%clk 0:02:57.2]}
5... O-O {[%clk 0:02:55.8]} 6. e3 {[%clk 0:02:57.4]} 6... Nbd7 {[%clk
0:02:52.6]} 7. cxd5 {[%clk 0:02:57.2]} 7... Nxd5 {[%clk 0:02:44]} 8. Nxd5 {[%clk
0:02:57]} 8... exd5 {[%clk 0:02:44.2]} 9. Bd3 {[%clk 0:02:56.8]} 9... c5 {[%clk
0:02:41.1]} 10. O-O {[%clk 0:02:55.9]} 10... h6 {[%clk 0:02:37.7]} 11. Rc1
{[%clk 0:02:52.6]} 11... c4 {[%clk 0:02:32.8]} 12. Bb1 {[%clk 0:02:52.5]} 12...
Nf6 {[%clk 0:02:29.4]} 13. Ne5 {[%clk 0:02:45.3]} 13... Bd6 {[%clk 0:02:14.7]}
14. Qf3 {[%clk 0:02:43.8]} 14... Qe7 {[%clk 0:02:08.2]} 15. Qg3 {[%clk
0:02:43.1]} 15... Nh5 {[%clk 0:02:05]} 16. Qf3 {[%clk 0:02:39]} 16... Nxf4
{[%clk 0:02:03.7]} 17. exf4 {[%clk 0:02:39]} 17... Bxe5 {[%clk 0:01:40.9]} 18.
dxe5 {[%clk 0:02:24.2]} 18... Rd8 {[%clk 0:01:38.3]} 19. Rfe1 {[%clk 0:02:21.2]}
19... b5 {[%clk 0:01:36.1]} 20. a4 {[%clk 0:02:15.1]} 20... a6 {[%clk
0:01:33.9]} 21. f5 {[%clk 0:02:06.4]} 21... Qg5 {[%clk 0:01:19.9]} 22. Rcd1
{[%clk 0:01:54.5]} 22... Bb7 {[%clk 0:01:14.3]} 23. e6 {[%clk 0:01:50.2]} 23...
fxe6 {[%clk 0:01:11.6]} 24. fxe6 {[%clk 0:01:48.5]} 24... Rf8 {[%clk 0:01:09.2]}
25. Qh3 {[%clk 0:01:45.7]} 25... Rae8 {[%clk 0:01:03]} 26. Rd4 {[%clk
0:01:44.8]} 26... Qf6 {[%clk 0:00:58.4]} 27. Rd2 {[%clk 0:01:35.6]} 27... Bc8
{[%clk 0:00:54.9]} 28. Qh5 {[%clk 0:01:25.5]} 28... Bxe6 {[%clk 0:00:49.9]} 29.
Rde2 {[%clk 0:01:15.6]} 29... Bf7 {[%clk 0:00:46.6]} 30. Qh3 {[%clk 0:01:07.4]}
30... Bg6 {[%clk 0:00:32.3]} 31. Bxg6 {[%clk 0:01:04.6]} 31... Qxf2+ {[%clk
0:00:24.4]} 32. Rxf2 {[%clk 0:01:00.4]} 32... Rxe1+ {[%clk 0:00:23.7]} 33. Rf1
{[%clk 0:01:00.2]} 33... Rfxf1# {[%clk 0:00:21.3]} 0-1

[Event "*** Titled Tuesday Blitz"]
[Site "Chess.com"]
[Date "2020.05.12"]
[Round "7"]
[White "Shankovskyi"]
[Black "lamomiablanca"]
[Result "1-0"]
[WhiteElo "2527"]
[BlackElo "2169"]
[TimeControl "180+1"]
[EndTime "11:15:22 PDT"]
[Termination "Shankovskyi won by resignation"]

1. e4 {[%clk 0:03:00.9]} 1... c5 {[%clk 0:02:56.2]} 2. Nf3 {[%clk 0:03:00.7]}
2... Nc6 {[%clk 0:02:55.2]} 3. Bb5 {[%clk 0:03:00.2]} 3... g6 {[%clk 0:02:49.4]}
4. Bxc6 {[%clk 0:02:59.5]} 4... dxc6 {[%clk 0:02:48.9]} 5. d3 {[%clk 0:02:59.6]}
5... Bg7 {[%clk 0:02:48.8]} 6. Nc3 {[%clk 0:03:00.5]} 6... Nf6 {[%clk
0:02:40.8]} 7. Be3 {[%clk 0:03:01.4]} 7... Nd7 {[%clk 0:02:38.2]} 8. Qd2 {[%clk
0:03:01.6]} 8... e5 {[%clk 0:02:16.6]} 9. Bh6 {[%clk 0:02:59.9]} 9... O-O {[%clk
0:02:12.2]} 10. h4 {[%clk 0:02:58.8]} 10... Qf6 {[%clk 0:01:58.1]} 11. h5 {[%clk
0:02:44.6]} 11... Bxh6 {[%clk 0:01:55.9]} 12. Qxh6 {[%clk 0:02:43.6]} 12... Qg7
{[%clk 0:01:55.8]} 13. Qg5 {[%clk 0:02:21.3]} 13... f6 {[%clk 0:01:54.9]} 14.
Qg3 {[%clk 0:02:21.4]} 14... Re8 {[%clk 0:01:47.7]} 15. hxg6 {[%clk 0:02:19.7]}
15... hxg6 {[%clk 0:01:46.7]} 16. Rh2 {[%clk 0:02:05.9]} 16... Nf8 {[%clk
0:01:44.2]} 17. O-O-O {[%clk 0:02:05.7]} 17... Ne6 {[%clk 0:01:39.8]} 18. Rdh1
{[%clk 0:02:05.4]} 18... Nf4 {[%clk 0:01:39.1]} 19. Nd2 {[%clk 0:01:51.7]} 19...
Be6 {[%clk 0:01:35]} 20. Qe3 {[%clk 0:01:51.7]} 20... b5 {[%clk 0:01:23.3]} 21.
g3 {[%clk 0:01:49.9]} 21... Nh5 {[%clk 0:01:18.3]} 22. Qxc5 {[%clk 0:01:48]}
22... Rac8 {[%clk 0:01:16]} 23. Rg1 {[%clk 0:01:25.2]} 23... a5 {[%clk
0:01:12.2]} 24. f3 {[%clk 0:01:21.2]} 24... a4 {[%clk 0:01:10.5]} 25. a3 {[%clk
0:01:20.5]} 25... Red8 {[%clk 0:01:04.5]} 26. Ne2 {[%clk 0:01:15.9]} 26... Rd7
{[%clk 0:00:55.1]} 27. g4 {[%clk 0:01:07.4]} 27... Nf4 {[%clk 0:00:54.1]} 28.
Nxf4 {[%clk 0:01:07.9]} 28... exf4 {[%clk 0:00:55]} 29. g5 {[%clk 0:01:08.8]}
29... Bf7 {[%clk 0:00:48]} 30. Rh4 {[%clk 0:00:58]} 30... Re7 {[%clk 0:00:35.6]}
31. Qxe7 {[%clk 0:00:50.2]} 1-0

[Event "*** Titled Tuesday Blitz"]
[Site "Chess.com"]
[Date "2020.05.12"]
[Round "7"]
[White "GameOverBro"]
[Black "Khamrakulov_Djurabek"]
[Result "0-1"]
[WhiteElo "2497"]
[BlackElo "2798"]
[TimeControl "180+1"]
[EndTime "11:15:23 PDT"]
[Termination "Khamrakulov_Djurabek won by resignation"]

1. e4 {[%clk 0:02:56.6]} 1... c6 {[%clk 0:03:00.1]} 2. Nc3 {[%clk 0:02:56.4]}
2... d5 {[%clk 0:03:00.4]} 3. Nf3 {[%clk 0:02:57]} 3... Bg4 {[%clk 0:02:59.6]}
4. h3 {[%clk 0:02:57.4]} 4... Bxf3 {[%clk 0:02:59.7]} 5. Qxf3 {[%clk 0:02:58.3]}
5... e6 {[%clk 0:02:59.9]} 6. a3 {[%clk 0:02:58.5]} 6... Nd7 {[%clk 0:02:59.3]}
7. d3 {[%clk 0:02:58.3]} 7... g6 {[%clk 0:02:57.2]} 8. Be2 {[%clk 0:02:52.9]}
8... Bg7 {[%clk 0:02:57.3]} 9. O-O {[%clk 0:02:52]} 9... Ne7 {[%clk 0:02:56.8]}
10. Qg3 {[%clk 0:02:50.5]} 10... Qb6 {[%clk 0:02:51.8]} 11. Nd1 {[%clk
0:02:42.5]} 11... O-O {[%clk 0:02:44.2]} 12. Be3 {[%clk 0:02:39.2]} 12... c5
{[%clk 0:02:43.5]} 13. Rb1 {[%clk 0:02:30]} 13... Qc6 {[%clk 0:02:39.2]} 14. f3
{[%clk 0:02:17.1]} 14... f5 {[%clk 0:02:38.2]} 15. Bg5 {[%clk 0:02:04.3]} 15...
Rae8 {[%clk 0:02:35.5]} 16. Nf2 {[%clk 0:01:57.1]} 16... e5 {[%clk 0:02:15.4]}
17. f4 {[%clk 0:01:49]} 17... fxe4 {[%clk 0:01:59.1]} 18. dxe4 {[%clk
0:01:42.8]} 18... exf4 {[%clk 0:01:56]} 19. Bxf4 {[%clk 0:01:40.4]} 19... dxe4
{[%clk 0:01:55.7]} 20. Bc4+ {[%clk 0:01:37.3]} 20... Kh8 {[%clk 0:01:55.6]} 21.
Ng4 {[%clk 0:01:10.2]} 21... Nf5 {[%clk 0:01:52]} 22. Qh2 {[%clk 0:01:04.7]}
22... b5 {[%clk 0:01:49.8]} 23. Be2 {[%clk 0:01:00.8]} 23... Nd4 {[%clk
0:01:48.4]} 24. Bd1 {[%clk 0:00:58.2]} 24... c4 {[%clk 0:01:40.1]} 25. c3 {[%clk
0:00:57]} 25... Nf5 {[%clk 0:01:39.4]} 26. Be2 {[%clk 0:00:52.5]} 26... Nc5
{[%clk 0:01:38.7]} 27. Be5 {[%clk 0:00:43.7]} 27... Nd3 {[%clk 0:01:17.4]} 28.
Bxg7+ {[%clk 0:00:43.2]} 28... Kxg7 {[%clk 0:01:17.9]} 29. Bxd3 {[%clk
0:00:21.2]} 29... cxd3 {[%clk 0:01:17.5]} 30. Kh1 {[%clk 0:00:20.1]} 30... e3
{[%clk 0:01:17.2]} 31. Ne5 {[%clk 0:00:20.2]} 31... Qe4 {[%clk 0:01:17]} 32. Ng4
{[%clk 0:00:14.3]} 32... e2 {[%clk 0:01:15.2]} 33. Rg1 {[%clk 0:00:13.6]} 33...
d2 {[%clk 0:01:14.7]} 34. Qc7+ {[%clk 0:00:13.4]} 34... Re7 {[%clk 0:01:14.2]}
35. Qc5 {[%clk 0:00:10.9]} 35... Qxb1 {[%clk 0:01:09.3]} 0-1

[Event "*** Titled Tuesday Blitz"]
[Site "Chess.com"]
[Date "2020.05.12"]
[Round "7"]
[White "DinaBelenkaya"]
[Black "coalescenet"]
[Result "1-0"]
[WhiteElo "2135"]
[BlackElo "2327"]
[TimeControl "180+1"]
[EndTime "11:15:23 PDT"]
[Termination "DinaBelenkaya won by resignation"]

1. e4 {[%clk 0:03:00.9]} 1... c6 {[%clk 0:02:59.1]} 2. d4 {[%clk 0:02:57.3]}
2... d5 {[%clk 0:03:00]} 3. Nc3 {[%clk 0:02:55.4]} 3... dxe4 {[%clk 0:02:58.9]}
4. Nxe4 {[%clk 0:02:53.5]} 4... Bf5 {[%clk 0:02:53.3]} 5. Ng3 {[%clk 0:02:51.1]}
5... Bg6 {[%clk 0:02:53.9]} 6. h4 {[%clk 0:02:43.5]} 6... h6 {[%clk 0:02:53.9]}
7. Nf3 {[%clk 0:02:43]} 7... Nd7 {[%clk 0:02:53.2]} 8. h5 {[%clk 0:02:43.2]}
8... Bh7 {[%clk 0:02:52.9]} 9. Bd3 {[%clk 0:02:38.8]} 9... Bxd3 {[%clk
0:02:53.1]} 10. Qxd3 {[%clk 0:02:39.7]} 10... e6 {[%clk 0:02:53.2]} 11. Bd2
{[%clk 0:02:39.9]} 11... Bd6 {[%clk 0:02:53.2]} 12. O-O-O {[%clk 0:02:30]} 12...
Bxg3 {[%clk 0:02:52.7]} 13. fxg3 {[%clk 0:02:29.4]} 13... Ngf6 {[%clk
0:02:53.1]} 14. Qe2 {[%clk 0:02:22]} 14... Qe7 {[%clk 0:02:43.3]} 15. Ne5 {[%clk
0:01:47.3]} 15... Rd8 {[%clk 0:02:30.6]} 16. g4 {[%clk 0:01:43.7]} 16... Nxe5
{[%clk 0:02:20.3]} 17. Qxe5 {[%clk 0:01:38.7]} 17... Qd6 {[%clk 0:02:11]} 18. g5
{[%clk 0:01:26.6]} 18... Ng4 {[%clk 0:01:56.3]} 19. Qxg7 {[%clk 0:01:21.7]}
19... Ke7 {[%clk 0:01:47.5]} 20. Rhf1 {[%clk 0:00:54]} 20... Rdf8 {[%clk
0:01:40.9]} 21. gxh6 {[%clk 0:00:47.3]} 21... Rhg8 {[%clk 0:01:37.3]} 22. Rxf7+
{[%clk 0:00:31.7]} 22... Rxf7 {[%clk 0:01:30.5]} 23. Qxg8 {[%clk 0:00:22.4]}
23... Nf6 {[%clk 0:01:25.6]} 24. Bg5 {[%clk 0:00:20.4]} 24... Qh2 {[%clk
0:01:24.2]} 25. Bxf6+ {[%clk 0:00:18.1]} 25... Rxf6 {[%clk 0:01:23.3]} 26. h7
{[%clk 0:00:18.2]} 26... Qf4+ {[%clk 0:01:15.7]} 27. Kb1 {[%clk 0:00:18.2]}
27... Qf1 {[%clk 0:01:15.8]} 28. Rc1 {[%clk 0:00:16]} 28... Rf8 {[%clk
0:01:11.7]} 29. h8=Q {[%clk 0:00:13.8]} 29... Rxg8 {[%clk 0:01:11]} 30. Qxg8
{[%clk 0:00:14.3]} 30... Qf5 {[%clk 0:01:10.7]} 31. Qg7+ {[%clk 0:00:14.3]}
31... Kd6 {[%clk 0:01:10.4]} 32. h6 {[%clk 0:00:14.9]} 32... Qf2 {[%clk
0:01:06.5]} 33. h7 {[%clk 0:00:14.6]} 33... Qxc2+ {[%clk 0:01:05.3]} 34. Rxc2
{[%clk 0:00:14]} 1-0

[Event "*** Titled Tuesday Blitz"]
[Site "Chess.com"]
[Date "2020.05.12"]
[Round "7"]
[White "bait_or_mate"]
[Black "agrigo3"]
[Result "0-1"]
[WhiteElo "2464"]
[BlackElo "2288"]
[TimeControl "180+1"]
[EndTime "11:15:25 PDT"]
[Termination "agrigo3 won by resignation"]

1. d4 {[%clk 0:03:00.9]} 1... d6 {[%clk 0:02:58.6]} 2. e4 {[%clk 0:03:00.3]}
2... Nf6 {[%clk 0:02:57.3]} 3. Nc3 {[%clk 0:02:58.7]} 3... g6 {[%clk 0:02:54.6]}
4. h3 {[%clk 0:02:58.3]} 4... Bg7 {[%clk 0:02:53.5]} 5. Be3 {[%clk 0:02:51.5]}
5... c6 {[%clk 0:02:51.5]} 6. a4 {[%clk 0:02:50.7]} 6... a5 {[%clk 0:02:47.5]}
7. g4 {[%clk 0:02:50.6]} 7... Na6 {[%clk 0:02:45.8]} 8. Bg2 {[%clk 0:02:50.8]}
8... Nb4 {[%clk 0:02:45.4]} 9. Nge2 {[%clk 0:02:50.3]} 9... O-O {[%clk
0:02:44.1]} 10. O-O {[%clk 0:02:48.8]} 10... e5 {[%clk 0:02:37.1]} 11. Ng3
{[%clk 0:02:45.4]} 11... Be6 {[%clk 0:02:35.7]} 12. g5 {[%clk 0:02:39.6]} 12...
Nd7 {[%clk 0:02:11.5]} 13. d5 {[%clk 0:02:39.2]} 13... cxd5 {[%clk 0:02:11.1]}
14. exd5 {[%clk 0:02:39.5]} 14... Bf5 {[%clk 0:02:11.3]} 15. Nxf5 {[%clk
0:02:39.4]} 15... gxf5 {[%clk 0:02:11.4]} 16. f4 {[%clk 0:02:38.3]} 16... exf4
{[%clk 0:01:53.4]} 17. Bxf4 {[%clk 0:02:39.2]} 17... Ne5 {[%clk 0:01:38.2]} 18.
Rb1 {[%clk 0:01:56.7]} 18... Ng6 {[%clk 0:01:35]} 19. Bg3 {[%clk 0:01:49.8]}
19... Qxg5 {[%clk 0:00:57.9]} 20. Bxd6 {[%clk 0:01:49.8]} 20... Rfd8 {[%clk
0:00:43.1]} 21. Bc7 {[%clk 0:01:43.9]} 21... Rd7 {[%clk 0:00:37.5]} 22. Bh2
{[%clk 0:01:43.5]} 22... Nh4 {[%clk 0:00:32.4]} 23. Qe2 {[%clk 0:01:42.6]} 23...
Re7 {[%clk 0:00:30.1]} 24. Ne4 {[%clk 0:00:56.9]} 24... fxe4 {[%clk 0:00:25.9]}
25. Bf4 {[%clk 0:00:56.1]} 25... Qxg2+ {[%clk 0:00:24.2]} 26. Qxg2 {[%clk
0:00:56]} 26... Nxg2 {[%clk 0:00:24.3]} 27. Kxg2 {[%clk 0:00:56.9]} 27... Nxd5
{[%clk 0:00:23.6]} 28. Bg3 {[%clk 0:00:57.1]} 28... Ne3+ {[%clk 0:00:21.9]} 29.
Kf2 {[%clk 0:00:57.2]} 29... Nxf1 {[%clk 0:00:21.9]} 30. Kxf1 {[%clk 0:00:58.1]}
30... Rc8 {[%clk 0:00:20.6]} 31. c3 {[%clk 0:00:58.4]} 31... e3 {[%clk
0:00:20.4]} 0-1

[Event "*** Titled Tuesday Blitz"]
[Site "Chess.com"]
[Date "2020.05.12"]
[Round "7"]
[White "AndrewMaco"]
[Black "EugeneRougon"]
[Result "0-1"]
[WhiteElo "2555"]
[BlackElo "2752"]
[TimeControl "180+1"]
[EndTime "11:15:26 PDT"]
[Termination "EugeneRougon won by resignation"]

1. e4 {[%clk 0:03:00.9]} 1... e6 {[%clk 0:02:58.9]} 2. d4 {[%clk 0:02:56.8]}
2... d5 {[%clk 0:02:59.3]} 3. Nc3 {[%clk 0:02:57.5]} 3... Bb4 {[%clk 0:02:59]}
4. e5 {[%clk 0:02:57.6]} 4... c5 {[%clk 0:02:58.8]} 5. a3 {[%clk 0:02:58]} 5...
Bxc3+ {[%clk 0:02:57.5]} 6. bxc3 {[%clk 0:02:58.9]} 6... Ne7 {[%clk 0:02:58.4]}
7. Nf3 {[%clk 0:02:59.2]} 7... b6 {[%clk 0:02:58]} 8. Bb5+ {[%clk 0:02:59.7]}
8... Bd7 {[%clk 0:02:58]} 9. Bd3 {[%clk 0:03:00.3]} 9... Ba4 {[%clk 0:02:58.6]}
10. h4 {[%clk 0:02:59]} 10... Qc7 {[%clk 0:02:57.8]} 11. h5 {[%clk 0:02:56.6]}
11... h6 {[%clk 0:02:53.1]} 12. O-O {[%clk 0:02:54.2]} 12... Nd7 {[%clk
0:02:51.1]} 13. Re1 {[%clk 0:02:51.2]} 13... c4 {[%clk 0:02:38.3]} 14. Bf1
{[%clk 0:02:50.2]} 14... O-O-O {[%clk 0:02:39.2]} 15. g3 {[%clk 0:02:50]} 15...
Rdf8 {[%clk 0:02:31.6]} 16. Bh3 {[%clk 0:02:48.5]} 16... g5 {[%clk 0:02:24.6]}
17. Nh2 {[%clk 0:02:45.2]} 17... Kb7 {[%clk 0:01:59.8]} 18. Ng4 {[%clk
0:02:44.3]} 18... Nf5 {[%clk 0:01:56.1]} 19. Kh2 {[%clk 0:02:40.3]} 19... Ng7
{[%clk 0:01:54]} 20. Ne3 {[%clk 0:02:26]} 20... f5 {[%clk 0:01:47.4]} 21. exf6
{[%clk 0:02:24]} 21... Rxf6 {[%clk 0:01:45.3]} 22. Ng4 {[%clk 0:02:18.9]} 22...
Rf7 {[%clk 0:01:41.1]} 23. Bg2 {[%clk 0:02:02.1]} 23... Rhf8 {[%clk 0:00:22]}
24. Kg1 {[%clk 0:02:01.3]} 24... Nxh5 {[%clk 0:00:19.8]} 25. Nxh6 {[%clk
0:01:55.6]} 25... Rxf2 {[%clk 0:00:19.8]} 26. Qxh5 {[%clk 0:01:51.7]} 26... Qxg3
{[%clk 0:00:17.5]} 0-1

[Event "*** Titled Tuesday Blitz"]
[Site "Chess.com"]
[Date "2020.05.12"]
[Round "7"]
[White "BhulseATX"]
[Black "CalinGheorghiu"]
[Result "0-1"]
[WhiteElo "1981"]
[BlackElo "2313"]
[TimeControl "180+1"]
[EndTime "11:15:26 PDT"]
[Termination "CalinGheorghiu won by resignation"]

1. d4 {[%clk 0:03:00.8]} 1... Nf6 {[%clk 0:02:58.5]} 2. Nf3 {[%clk 0:03:00]}
2... d5 {[%clk 0:02:57.9]} 3. c4 {[%clk 0:02:58.1]} 3... e6 {[%clk 0:02:55.8]}
4. Nc3 {[%clk 0:02:58]} 4... Bb4 {[%clk 0:02:53.7]} 5. Qa4+ {[%clk 0:02:51]}
5... Nc6 {[%clk 0:02:51.6]} 6. e3 {[%clk 0:02:51.1]} 6... O-O {[%clk 0:02:46.3]}
7. a3 {[%clk 0:02:50.3]} 7... Bxc3+ {[%clk 0:02:33.1]} 8. bxc3 {[%clk
0:02:49.9]} 8... Ne4 {[%clk 0:02:33.5]} 9. Qc2 {[%clk 0:02:48.2]} 9... f5 {[%clk
0:02:29.1]} 10. cxd5 {[%clk 0:02:42]} 10... exd5 {[%clk 0:02:26.8]} 11. c4
{[%clk 0:02:41.8]} 11... Be6 {[%clk 0:02:24.2]} 12. cxd5 {[%clk 0:02:39.1]}
12... Bxd5 {[%clk 0:02:22.8]} 13. Bc4 {[%clk 0:02:38.7]} 13... Kh8 {[%clk
0:02:18.9]} 14. Bxd5 {[%clk 0:02:36.6]} 14... Qxd5 {[%clk 0:02:18.2]} 15. O-O
{[%clk 0:02:36.6]} 15... Rad8 {[%clk 0:02:00.3]} 16. Rb1 {[%clk 0:02:34]} 16...
b6 {[%clk 0:01:54.5]} 17. Bd2 {[%clk 0:02:19.3]} 17... Rd6 {[%clk 0:01:52.3]}
18. Rfc1 {[%clk 0:02:16]} 18... Rg6 {[%clk 0:01:47]} 19. Qc4 {[%clk 0:02:06.7]}
19... Qd8 {[%clk 0:01:28.2]} 20. Bb4 {[%clk 0:02:00.2]} 20... Re8 {[%clk
0:01:16.4]} 21. d5 {[%clk 0:01:59.9]} 21... Ne5 {[%clk 0:00:56.1]} 22. Nxe5
{[%clk 0:01:51.1]} 22... Rxe5 {[%clk 0:00:45.8]} 23. Qxc7 {[%clk 0:01:50.3]}
23... Rxd5 {[%clk 0:00:41.1]} 24. Qxd8+ {[%clk 0:01:44.9]} 24... Rxd8 {[%clk
0:00:40.2]} 25. Rc7 {[%clk 0:01:43.5]} 25... a5 {[%clk 0:00:34.7]} 26. Be1
{[%clk 0:01:32.4]} 26... h5 {[%clk 0:00:32.8]} 27. f3 {[%clk 0:01:32.4]} 27...
Nd2 {[%clk 0:00:31.1]} 28. Rbc1 {[%clk 0:01:19]} 28... Nxf3+ {[%clk 0:00:29.7]}
29. Kf2 {[%clk 0:01:18.4]} 29... Nxe1 {[%clk 0:00:27.7]} 30. Rxe1 {[%clk
0:01:13.2]} 30... Rd2+ {[%clk 0:00:27.3]} 31. Re2 {[%clk 0:01:10.7]} 31... Rxg2+
{[%clk 0:00:25.1]} 32. Kxg2 {[%clk 0:01:10.4]} 32... Rxe2+ {[%clk 0:00:25.2]}
33. Kf3 {[%clk 0:01:10.1]} 33... Rxh2 {[%clk 0:00:25.3]} 34. Rc6 {[%clk
0:01:07.2]} 34... Rb2 {[%clk 0:00:24.4]} 35. Kf4 {[%clk 0:01:04.6]} 35... h4
{[%clk 0:00:23.5]} 0-1